{"text_format":"3","workbook":"xlsx","n_sheets":2,"sheets":["ค่าใช้จ่าย","ประเภท"],"not_rendered":{"defined_names":5},"read":"whole","date_system":"1900"}

{"sheet":"ค่าใช้จ่าย","index":0,"n_rows":25,"n_cols":7,"rows_kept":25,"merged":[[0,1,0,5],[1,1,1,5]]}
[null,"งบประมาณค่าใช้จ่าย",{"$nulls":4},{"$f":"TODAY()","v":"2022-01-18"}]
[null,"ชื่อบริษัท"]
[null,"ค่าใช้จ่าย","ประเภท","งบประมาณ","ตามที่เป็นจริง","ผลต่าง (ดอลลาร์)","ผลต่าง (%)"]
[null,"การโฆษณา","การดำเนินงาน",null,null,{"$f":"IFERROR(SUM(ค่าใช้จ่าย[[#This Row],[งบประมาณ]]-ค่าใช้จ่าย[[#This Row],[ตามที่เป็นจริง]]), \"\")","v":0},{"$f":"IFERROR(SUM(ค่าใช้จ่าย[[#This Row],[ผลต่าง (ดอลลาร์)]]/ค่าใช้จ่าย[[#This Row],[งบประมาณ]]),\"\")","v":""}]
[null,"หนี้สิน","การดำเนินงาน",null,null,{"$f":"IFERROR(SUM(ค่าใช้จ่าย[[#This Row],[งบประมาณ]]-ค่าใช้จ่าย[[#This Row],[ตามที่เป็นจริง]]), \"\")","v":0},{"$f":"IFERROR(SUM(ค่าใช้จ่าย[[#This Row],[ผลต่าง (ดอลลาร์)]]/ค่าใช้จ่าย[[#This Row],[งบประมาณ]]),\"\")","v":""}]
[null,"กำไร","การดำเนินงาน",null,null,{"$f":"IFERROR(SUM(ค่าใช้จ่าย[[#This Row],[งบประมาณ]]-ค่าใช้จ่าย[[#This Row],[ตามที่เป็นจริง]]), \"\")","v":0},{"$f":"IFERROR(SUM(ค่าใช้จ่าย[[#This Row],[ผลต่าง (ดอลลาร์)]]/ค่าใช้จ่าย[[#This Row],[งบประมาณ]]),\"\")","v":""}]
[null,"สินค้า","การดำเนินงาน",null,null,{"$f":"IFERROR(SUM(ค่าใช้จ่าย[[#This Row],[งบประมาณ]]-ค่าใช้จ่าย[[#This Row],[ตามที่เป็นจริง]]), \"\")","v":0},{"$f":"IFERROR(SUM(ค่าใช้จ่าย[[#This Row],[ผลต่าง (ดอลลาร์)]]/ค่าใช้จ่าย[[#This Row],[งบประมาณ]]),\"\")","v":""}]
[null,"ค่าไปรษณีย์","การดำเนินงาน",null,null,{"$f":"IFERROR(SUM(ค่าใช้จ่าย[[#This Row],[งบประมาณ]]-ค่าใช้จ่าย[[#This Row],[ตามที่เป็นจริง]]), \"\")","v":0},{"$f":"IFERROR(SUM(ค่าใช้จ่าย[[#This Row],[ผลต่าง (ดอลลาร์)]]/ค่าใช้จ่าย[[#This Row],[งบประมาณ]]),\"\")","v":""}]
[null,"เช่าหรือจำนอง","การดำเนินงาน",null,null,{"$f":"IFERROR(SUM(ค่าใช้จ่าย[[#This Row],[งบประมาณ]]-ค่าใช้จ่าย[[#This Row],[ตามที่เป็นจริง]]), \"\")","v":0},{"$f":"IFERROR(SUM(ค่าใช้จ่าย[[#This Row],[ผลต่าง (ดอลลาร์)]]/ค่าใช้จ่าย[[#This Row],[งบประมาณ]]),\"\")","v":""}]
[null,"รายจ่ายเกี่ยวกับการขาย","การดำเนินงาน",null,null,{"$f":"IFERROR(SUM(ค่าใช้จ่าย[[#This Row],[งบประมาณ]]-ค่าใช้จ่าย[[#This Row],[ตามที่เป็นจริง]]), \"\")","v":0},{"$f":"IFERROR(SUM(ค่าใช้จ่าย[[#This Row],[ผลต่าง (ดอลลาร์)]]/ค่าใช้จ่าย[[#This Row],[งบประมาณ]]),\"\")","v":""}]
[null,"ภาษี","การดำเนินงาน",null,null,{"$f":"IFERROR(SUM(ค่าใช้จ่าย[[#This Row],[งบประมาณ]]-ค่าใช้จ่าย[[#This Row],[ตามที่เป็นจริง]]), \"\")","v":0},{"$f":"IFERROR(SUM(ค่าใช้จ่าย[[#This Row],[ผลต่าง (ดอลลาร์)]]/ค่าใช้จ่าย[[#This Row],[งบประมาณ]]),\"\")","v":""}]
[null,"สาธารณูปโภค","การดำเนินงาน",null,null,{"$f":"IFERROR(SUM(ค่าใช้จ่าย[[#This Row],[งบประมาณ]]-ค่าใช้จ่าย[[#This Row],[ตามที่เป็นจริง]]), \"\")","v":0},{"$f":"IFERROR(SUM(ค่าใช้จ่าย[[#This Row],[ผลต่าง (ดอลลาร์)]]/ค่าใช้จ่าย[[#This Row],[งบประมาณ]]),\"\")","v":""}]
[null,"อื่นๆ","การดำเนินงาน",null,null,{"$f":"IFERROR(SUM(ค่าใช้จ่าย[[#This Row],[งบประมาณ]]-ค่าใช้จ่าย[[#This Row],[ตามที่เป็นจริง]]), \"\")","v":0},{"$f":"IFERROR(SUM(ค่าใช้จ่าย[[#This Row],[ผลต่าง (ดอลลาร์)]]/ค่าใช้จ่าย[[#This Row],[งบประมาณ]]),\"\")","v":""}]
[null,"ค่าประกัน","การดำเนินงาน",null,null,{"$f":"IFERROR(SUM(ค่าใช้จ่าย[[#This Row],[งบประมาณ]]-ค่าใช้จ่าย[[#This Row],[ตามที่เป็นจริง]]), \"\")","v":0},{"$f":"IFERROR(SUM(ค่าใช้จ่าย[[#This Row],[ผลต่าง (ดอลลาร์)]]/ค่าใช้จ่าย[[#This Row],[งบประมาณ]]),\"\")","v":""}]
[null,"ดอกเบี้ย","การดำเนินงาน",null,null,{"$f":"IFERROR(SUM(ค่าใช้จ่าย[[#This Row],[งบประมาณ]]-ค่าใช้จ่าย[[#This Row],[ตามที่เป็นจริง]]), \"\")","v":0},{"$f":"IFERROR(SUM(ค่าใช้จ่าย[[#This Row],[ผลต่าง (ดอลลาร์)]]/ค่าใช้จ่าย[[#This Row],[งบประมาณ]]),\"\")","v":""}]
[null,"โทรศัพท์","การดำเนินงาน",null,null,{"$f":"IFERROR(SUM(ค่าใช้จ่าย[[#This Row],[งบประมาณ]]-ค่าใช้จ่าย[[#This Row],[ตามที่เป็นจริง]]), \"\")","v":0},{"$f":"IFERROR(SUM(ค่าใช้จ่าย[[#This Row],[ผลต่าง (ดอลลาร์)]]/ค่าใช้จ่าย[[#This Row],[งบประมาณ]]),\"\")","v":""}]
[null,"การบำรุงรักษาและการซ่อมแซม","การดำเนินงาน",null,null,{"$f":"IFERROR(SUM(ค่าใช้จ่าย[[#This Row],[งบประมาณ]]-ค่าใช้จ่าย[[#This Row],[ตามที่เป็นจริง]]), \"\")","v":0},{"$f":"IFERROR(SUM(ค่าใช้จ่าย[[#This Row],[ผลต่าง (ดอลลาร์)]]/ค่าใช้จ่าย[[#This Row],[งบประมาณ]]),\"\")","v":""}]
[null,"ค่าธรรมเนียมกฎหมาย","การดำเนินงาน",null,null,{"$f":"IFERROR(SUM(ค่าใช้จ่าย[[#This Row],[งบประมาณ]]-ค่าใช้จ่าย[[#This Row],[ตามที่เป็นจริง]]), \"\")","v":0},{"$f":"IFERROR(SUM(ค่าใช้จ่าย[[#This Row],[ผลต่าง (ดอลลาร์)]]/ค่าใช้จ่าย[[#This Row],[งบประมาณ]]),\"\")","v":""}]
[null,"ค่าเสื่อมราคา","การดำเนินงาน",null,null,{"$f":"IFERROR(SUM(ค่าใช้จ่าย[[#This Row],[งบประมาณ]]-ค่าใช้จ่าย[[#This Row],[ตามที่เป็นจริง]]), \"\")","v":0},{"$f":"IFERROR(SUM(ค่าใช้จ่าย[[#This Row],[ผลต่าง (ดอลลาร์)]]/ค่าใช้จ่าย[[#This Row],[งบประมาณ]]),\"\")","v":""}]
[null,"ค่าขนส่ง","การดำเนินงาน",null,null,{"$f":"IFERROR(SUM(ค่าใช้จ่าย[[#This Row],[งบประมาณ]]-ค่าใช้จ่าย[[#This Row],[ตามที่เป็นจริง]]), \"\")","v":0},{"$f":"IFERROR(SUM(ค่าใช้จ่าย[[#This Row],[ผลต่าง (ดอลลาร์)]]/ค่าใช้จ่าย[[#This Row],[งบประมาณ]]),\"\")","v":""}]
[null,"ที่เก็บข้อมูล","การดำเนินงาน",null,null,{"$f":"IFERROR(SUM(ค่าใช้จ่าย[[#This Row],[งบประมาณ]]-ค่าใช้จ่าย[[#This Row],[ตามที่เป็นจริง]]), \"\")","v":0},{"$f":"IFERROR(SUM(ค่าใช้จ่าย[[#This Row],[ผลต่าง (ดอลลาร์)]]/ค่าใช้จ่าย[[#This Row],[งบประมาณ]]),\"\")","v":""}]
[null,"ร้านค้า","ส่วนบุคคล",null,null,{"$f":"IFERROR(SUM(ค่าใช้จ่าย[[#This Row],[งบประมาณ]]-ค่าใช้จ่าย[[#This Row],[ตามที่เป็นจริง]]), \"\")","v":0},{"$f":"IFERROR(SUM(ค่าใช้จ่าย[[#This Row],[ผลต่าง (ดอลลาร์)]]/ค่าใช้จ่าย[[#This Row],[งบประมาณ]]),\"\")","v":""}]
[null,"พนักงานขาย","ส่วนบุคคล",null,null,{"$f":"IFERROR(SUM(ค่าใช้จ่าย[[#This Row],[งบประมาณ]]-ค่าใช้จ่าย[[#This Row],[ตามที่เป็นจริง]]), \"\")","v":0},{"$f":"IFERROR(SUM(ค่าใช้จ่าย[[#This Row],[ผลต่าง (ดอลลาร์)]]/ค่าใช้จ่าย[[#This Row],[งบประมาณ]]),\"\")","v":""}]
[null,"อื่นๆ","ส่วนบุคคล",null,null,{"$f":"IFERROR(SUM(ค่าใช้จ่าย[[#This Row],[งบประมาณ]]-ค่าใช้จ่าย[[#This Row],[ตามที่เป็นจริง]]), \"\")","v":0},{"$f":"IFERROR(SUM(ค่าใช้จ่าย[[#This Row],[ผลต่าง (ดอลลาร์)]]/ค่าใช้จ่าย[[#This Row],[งบประมาณ]]),\"\")","v":""}]
[null,"ค่าใช้จ่ายรวม",null,{"$f":"IFERROR(SUM(ค่าใช้จ่าย[งบประมาณ]), \"\")","v":0},{"$f":"IFERROR(SUM(ค่าใช้จ่าย[ตามที่เป็นจริง]), \"\")","v":0},{"$f":"IFERROR(SUM(ค่าใช้จ่าย[ผลต่าง (ดอลลาร์)]), \"\")","v":0},{"$f":"IFERROR(SUM(ค่าใช้จ่าย[[#Totals],[ผลต่าง (ดอลลาร์)]]/ค่าใช้จ่าย[[#Totals],[งบประมาณ]]),\"\")","v":""}]

{"sheet":"ประเภท","index":1,"n_rows":4,"n_cols":2,"rows_kept":4}
[null,"ค้นหาประเภท"]
[null,"ประเภท"]
[null,"การดำเนินงาน"]
[null,"ส่วนบุคคล"]